bitfinex/quotes_SOLUSD_20240726
["timestamp","ask_amount","ask_price","bid_price","bid_amount"]
[1721998392473,9.45155862,178.86,178.84,45.0]
[1721998392790,20.0,178.87,178.84,45.0]
[1721998392973,9.45163524,178.86,178.84,45.0]
[1721998393486,9.45237258,178.85,178.84,45.0]
[1721998393982,0.97439009,178.87,178.84,45.0]
[1721998394188,10.42676267,178.87,178.86,13.55]
[1721998394374,0.97439009,178.87,178.86,13.55]
[1721998394972,0.97439009,178.87,178.86,58.55]
[1721998395173,9.45237258,178.91,178.86,58.55]
[1721998395390,40.0,178.91,178.9,13.55]
[1721998395568,49.45736108,178.91,178.9,13.55]
[1721998395881,65.5929956,178.91,178.9,13.55]
[1721998396199,49.45736108,178.91,178.84,6.138]
[1721998396510,40.0,178.91,178.9,13.55]
[1721998396681,65.59230881,178.91,178.9,13.55]
[1721998396995,9.45610363,178.91,178.9,13.55]
[1721998397191,25.59191026,178.92,178.9,13.55]
[1721998397391,16.13580663,178.92,178.91,13.55]
[1721998397595,25.59264139,178.92,178.91,13.55]
[1721998398775,9.45683476,178.92,178.91,13.55]
[1721998399178,29.45683476,178.92,178.91,13.55]
[1721998399470,45.59225245,178.92,178.91,13.55]
[1721998400301,20.0,178.91,178.9,13.55]
[1721998400602,29.45683476,178.91,178.9,13.55]
[1721998402690,9.45683476,178.91,178.9,13.55]
[1721998403012,9.45839225,178.91,178.9,13.55]
[1721998403505,20.0,178.91,178.9,13.55]
[1721998403812,9.4582501,178.91,178.9,13.55]
[1721998404005,9.4582501,178.92,178.9,13.55]
[1721998404308,9.4582501,178.91,178.85,45.0]
[1721998404614,40.0,178.93,178.85,45.0]
[1721998404785,40.0,178.93,178.92,13.55]
[1721998405098,49.45878582,178.93,178.92,13.55]
[1721998405508,29.45878582,178.93,178.92,13.55]
[1721998405705,29.45852228,178.93,178.92,13.55]
[1721998407781,9.45852228,178.93,178.92,13.55]
[1721998408777,9.45496812,178.93,178.92,13.55]
[1721998409002,9.45496812,178.94,178.92,13.55]
[1721998409210,29.45403202,178.93,178.92,13.55]
[1721998409417,9.45403202,178.93,178.92,13.55]
[1721998409585,9.45403202,178.94,178.92,13.55]
[1721998409787,9.45403202,178.93,178.86,15.7687]
[1721998409989,9.45403202,178.94,178.92,13.55]
[1721998410188,9.45403202,178.94,178.87,45.0]
[1721998410189,9.45403202,178.94,178.93,13.55]
[1721998411187,25.58866435,178.96,178.93,13.55]
[1721998411406,16.13463233,178.96,178.95,13.55]
[1721998411607,25.58948689,178.96,178.95,13.55]
[1721998412483,9.45612488,178.96,178.9,6.5671]
[1721998412690,10.43046725,178.98,178.95,13.55]
[1721998413010,10.43046725,178.98,178.92,13.55]
[1721998413011,0.97434237,178.98,178.97,13.55]
[1721998413214,26.5715535,178.98,178.97,13.55]
[1721998413513,10.43788188,178.98,178.96,13.55]
[1721998413720,26.57155468,178.98,178.96,13.55]
[1721998413896,17.10801517,178.98,178.97,13.55]
[1721998414096,26.57231716,178.98,178.97,13.55]
[1721998414496,25.59797479,178.98,178.96,13.55]
[1721998414823,25.59797479,178.98,178.92,13.55]
[1721998414824,9.46430199,178.97,178.92,13.55]
[1721998415001,9.46430199,178.97,178.96,13.55]
[1721998415522,9.46430199,178.97,178.9,5.4212405]
[1721998415700,16.13369989,178.97,178.96,13.55]
[1721998415904,9.46403533,178.97,178.96,13.55]
[1721998419196,25.59901543,178.97,178.96,13.55]
[1721998419415,9.46527849,178.97,178.96,13.55]
[1721998422627,25.59900026,178.97,178.96,13.55]
[1721998423128,25.59901179,178.97,178.96,13.55]
[1721998423529,36.13373694,178.97,178.96,13.55]
[1721998423828,20.0,178.95,178.93,13.55]
[1721998423998,9.46527485,178.94,178.93,13.55]
[1721998424420,20.0,178.98,178.93,13.55]
[1721998424626,36.13389226,178.97,178.94,13.55]
[1721998424818,20.0,178.97,178.94,13.55]
[1721998425019,20.0,178.97,178.95,13.55]
[1721998425227,20.0,178.98,178.96,13.55]
[1721998425404,36.13373523,178.97,178.94,13.55]
[1721998425604,20.0,178.97,178.94,13.55]
[1721998427334,20.0,178.96,178.93,13.55]
[1721998427535,20.0,178.96,178.92,13.55]
[1721998430845,20.0,178.96,178.93,13.55]
[1721998431215,20.0,178.96,178.92,13.55]
[1721998431635,20.0,178.95,178.92,13.55]
[1721998432011,40.0,178.98,178.94,13.55]
[1721998432342,16.13414352,178.97,178.94,13.55]
[1721998432817,40.0,178.98,178.94,13.55]
[1721998433016,16.13375954,178.97,178.94,13.55]
[1721998433334,40.0,178.98,178.94,13.55]
[1721998434424,40.0,178.98,178.95,13.55]
[1721998434621,20.0,178.98,178.96,13.55]
[1721998435125,20.97394872,178.98,178.96,13.55]
[1721998436816,20.97394872,178.98,178.97,13.55]
[1721998437011,0.97394872,178.98,178.97,13.55]
[1721998440446,0.97394872,178.98,178.93,22.2509]
[1721998440624,0.97394872,178.98,178.95,13.55]
[1721998441242,0.97394872,178.98,178.93,6.4263]
[1721998441552,40.0,178.97,178.94,13.55]
[1721998441726,40.0,178.97,178.93,13.55]
[1721998442417,40.0,178.95,178.89,16.4318]
[1721998442618,20.0,178.95,178.91,13.55]
[1721998442844,53.55,178.97,178.91,13.55]
[1721998443045,20.0,178.95,178.91,13.55]
[1721998443248,20.0,178.95,178.92,13.55]
[1721998443433,16.13386915,178.94,178.92,13.55]
[1721998443945,20.0,178.95,178.92,13.55]
[1721998444521,40.0,178.97,178.93,13.55]
[1721998444752,16.13215826,178.96,178.93,13.55]
[1721998445552,16.1321437,178.96,178.93,13.55]
[1721998446824,16.1321437,178.96,178.94,13.55]
[1721998448161,16.1321437,178.96,178.93,13.55]
[1721998448650,16.13362619,178.96,178.93,13.55]
[1721998449028,16.13362619,178.96,178.94,13.55]
[1721998449230,20.0,178.97,178.95,13.55]
[1721998449446,16.13362619,178.96,178.95,13.55]
[1721998450324,0.97394872,178.98,178.95,13.55]
[1721998450535,0.97394872,178.98,178.97,13.55]
[1721998451737,20.97394872,178.98,178.95,13.55]
[1721998451932,16.13350281,178.97,178.95,13.55]
[1721998452619,16.13363086,178.97,178.95,13.55]
[1721998453537,16.13363086,178.97,178.96,13.55]
[1721998453750,0.97394872,178.98,178.96,13.55]
[1721998457760,0.97394872,178.98,178.97,13.55]
[1721998465175,0.97394872,178.98,178.96,13.55]
[1721998465568,0.97394872,178.98,178.89,16.1764]
[1721998465768,17.10721654,178.98,178.94,13.55]
[1721998465978,37.10721654,178.98,178.94,13.55]
[1721998466262,20.0,178.96,178.92,13.55]
[1721998466467,16.13326782,178.95,178.92,13.55]
[1721998466891,17.10740454,178.95,178.92,13.55]
[1721998467083,17.10740454,178.95,178.93,13.55]
[1721998468059,17.10740454,178.95,178.94,13.55]
[1721998468369,20.97413672,178.95,178.93,13.55]
[1721998468570,16.13326782,178.94,178.93,13.55]
[1721998468779,20.97413672,178.95,178.93,13.55]
[1721998469290,16.13381203,178.94,178.93,13.55]
[1721998470384,0.97413672,178.95,178.93,13.55]
[1721998471465,0.97413672,178.95,178.94,13.55]
[1721998472603,0.97413672,178.95,178.93,13.55]
[1721998473179,0.97413672,178.95,178.94,13.55]
[1721998476203,16.13379553,178.96,178.95,9.02586328]
[1721998477103,16.13379553,178.96,178.95,22.57586328]
[1721998477304,16.13379553,178.98,178.95,22.57586328]
[1721998477898,16.13379553,178.98,178.95,9.02586328]
[1721998478301,20.0,178.97,178.95,9.02586328]
[1721998478476,16.13379553,178.96,178.95,9.02586328]
[1721998479187,16.13380479,178.96,178.95,9.02586328]
[1721998482600,40.0,178.97,178.95,9.02586328]
[1721998482782,16.13380402,178.96,178.95,9.02586328]
[1721998483177,16.13380326,178.98,178.95,9.02586328]
[1721998483683,16.13373193,178.98,178.95,9.02586328]
[1721998483985,20.0,178.97,178.95,9.02586328]
[1721998484301,16.13373193,178.96,178.95,9.02586328]
[1721998489122,16.13373193,178.96,178.95,22.57586328]
[1721998489403,16.13379867,178.96,178.95,22.57586328]
[1721998491291,20.0,178.97,178.95,22.57586328]
[1721998491512,16.13379867,178.96,178.95,22.57586328]
[1721998491819,16.13379867,178.97,178.95,22.57586328]
[1721998492013,16.13379867,178.98,178.95,22.57586328]
[1721998492312,36.13379867,178.98,178.95,22.57586328]
[1721998492482,16.13379867,178.97,178.95,22.57586328]
[1721998492680,20.0,178.98,178.95,22.57586328]
[1721998492889,20.0,178.96,178.95,22.57586328]
[1721998493193,36.13350281,178.96,178.95,9.02586328]
[1721998493385,36.13349091,178.96,178.95,9.02586328]
[1721998496212,20.0,178.96,178.95,9.02586328]
[1721998496502,36.13384258,178.96,178.95,9.02586328]
[1721998496707,37.10797907,178.96,178.95,9.02586328]
[1721998499698,37.10849194,178.96,178.95,9.02586328]
[1721998501013,40.73099637,178.96,178.95,9.02586328]
[1721998501184,47.45364395,178.96,178.95,9.02586328]
[1721998502195,47.45355678,178.96,178.95,9.02586328]
[1721998502793,47.45350212,178.96,178.95,9.02586328]
[1721998503210,47.45350186,178.96,178.95,9.02586328]
[1721998505623,43.83113784,178.96,178.95,9.02586328]
[1721998505809,47.45355541,178.96,178.95,9.02586328]
[1721998508196,61.00355541,178.96,178.95,9.02586328]
[1721998508425,61.00355541,178.96,178.95,2.30315413]
[1721998508426,76.75405541,178.96,178.95,2.30315413]
[1721998508601,76.75405541,178.96,178.95,2.00315413]
[1721998509106,76.75644599,178.96,178.95,2.00315413]
[1721998509314,40.0,178.89,178.86,13.55]
[1721998509622,10.34531305,178.88,178.86,13.55]
[1721998509820,40.0,178.91,178.87,13.55]
[1721998510011,27.26749206,178.9,178.87,13.55]
[1721998510216,27.26749206,178.9,178.83,6.2968]
[1721998510217,11.13066117,178.89,178.83,61.61493838]
[1721998510419,40.0,178.93,178.88,13.55]
[1721998510611,27.26745248,178.92,178.9,13.55]
[1721998510809,31.1308137,178.91,178.89,13.55]
[1721998511122,27.26745248,178.9,178.89,13.55]
[1721998512136,11.71714932,178.9,178.89,13.55]
[1721998512311,11.71715222,178.9,178.89,13.55]
[1721998512812,6.72360607,178.9,178.89,13.55]
[1721998513231,16.13501892,178.94,178.89,13.55]
[1721998513232,6.72360607,178.93,178.89,13.55]
[1721998513432,4.99384784,178.92,178.86,16.22049664]
[1721998513735,4.99384784,178.92,178.91,13.55]
[1721998513910,6.72272083,178.92,178.91,13.55]
[1721998514112,11.71656867,178.92,178.91,13.55]
[1721998514309,11.71656867,178.92,178.86,15.1026]
[1721998514516,16.13501892,178.94,178.91,13.55]
[1721998514720,11.71665927,178.93,178.92,13.55]
[1721998515810,11.71838952,178.93,178.92,13.55]
[1721998516306,31.71838952,178.93,178.92,13.55]
[1721998516524,47.85340844,178.93,178.91,13.55]
[1721998516710,21.13066041,178.92,178.91,13.55]
[1721998516922,11.71838952,178.92,178.91,13.55]
[1721998518412,11.71994036,178.92,178.91,13.55]
[1721998519150,27.85452426,178.92,178.91,13.55]
[1721998519431,27.85452426,178.92,178.86,15.1026]
[1721998519644,47.85452426,178.91,178.86,15.1026]
[1721998519932,27.85594721,178.9,178.86,15.1026]
[1721998520131,16.13580463,178.9,178.89,13.55]
[1721998520332,22.85905946,178.9,178.89,13.55]
[1721998521110,27.85493836,178.9,178.89,13.55]
[1721998522016,6.72325483,178.9,178.89,13.55]
[1721998523120,12.30689885,178.9,178.89,13.55]
[1721998524112,28.44170834,178.9,178.89,13.55]
[1721998524517,12.30689885,178.9,178.89,13.55]
[1721998525813,26.71186384,178.9,178.84,1.11801635]
[1721998526011,20.0,178.92,178.69,1.118545]
[1721998526012,20.0,178.75,178.69,1.118545]
[1721998526217,42.85865809,178.74,178.67,13.55]
[1721998526450,13.55,178.73,178.67,13.55]
[1721998526925,20.0,178.76,178.68,13.55]
[1721998527241,61.1204676,178.81,178.71,13.55]
[1721998527443,16.15096907,178.8,178.71,13.55]
[1721998527736,13.55,178.76,178.71,13.55]
[1721998527942,40.0,178.79,178.69,13.55]
[1721998528138,13.55,178.75,178.7,20.0]
[1721998528323,20.0,178.76,178.68,13.55]
[1721998528528,13.55,178.74,178.68,13.55]
[1721998528730,13.55,178.73,178.66,1.11881774]
[1721998529033,20.0,178.76,178.65,1.11899102]
[1721998529348,20.0,178.74,178.67,13.55]
[1721998529709,13.55,178.73,178.67,13.55]
[1721998530128,13.55,178.72,178.66,13.55]
[1721998530434,20.0,178.74,178.66,13.55]
[1721998530642,13.55,178.72,178.67,20.0]
[1721998531217,13.55,178.73,178.68,45.0]
[1721998532246,13.55,178.75,178.69,13.55]
[1721998532448,13.55,178.75,178.7,58.55]
[1721998532653,20.0,178.76,178.7,13.55]
[1721998532820,13.55,178.75,178.71,45.0]
[1721998533647,13.55,178.75,178.7,13.55]
[1721998535343,20.0,178.76,178.7,13.55]
[1721998535553,13.55,178.75,178.7,13.55]
[1721998539158,20.0,178.76,178.7,13.55]
[1721998539351,33.55,178.76,178.72,1.0]
[1721998540347,20.0,178.76,178.72,1.0]
[1721998540546,20.0,178.77,178.72,1.0]
[1721998540727,13.55,178.77,178.72,46.0]
[1721998540927,36.4074,178.81,178.74,13.55]
[1721998541126,33.55,178.8,178.74,13.55]
[1721998541337,20.0,178.78,178.72,46.0]
[1721998541627,20.0,178.78,178.74,13.55]
[1721998542348,20.0,178.78,178.73,13.55]
[1721998542949,20.0,178.78,178.74,58.55]
[1721998543453,20.0,178.78,178.75,13.55]
[1721998543750,33.55,178.8,178.75,13.55]
[1721998544349,33.55,178.8,178.74,58.55]
[1721998544538,20.0,178.79,178.74,45.0]
[1721998544839,33.55,178.79,178.73,13.55]
[1721998545346,20.0,178.79,178.74,58.55]
[1721998545557,33.55,178.8,178.74,58.55]
[1721998545732,33.55,178.8,178.75,13.55]
[1721998549754,33.55,178.8,178.74,58.55]
[1721998550353,20.0,178.78,178.74,58.55]
[1721998551523,20.0,178.78,178.72,1.0]
[1721998551524,20.0,178.78,178.73,13.55]
[1721998551930,20.0,178.76,178.73,13.55]
[1721998552246,33.55,178.78,178.73,13.55]
[1721998552751,20.0,178.77,178.73,13.38177604]
[1721998552951,33.55,178.77,178.72,14.55]
[1721998553167,33.55,178.77,178.72,1.0]
[1721998553353,20.0,178.74,178.72,1.0]
[1721998559259,20.0,178.76,178.72,14.55]
[1721998559462,20.0,178.76,178.72,1.0]
[1721998560165,20.0,178.76,178.72,14.55]
[1721998561163,33.55,178.78,178.72,14.55]
[1721998561345,33.55,178.79,178.74,13.55]
[1721998562968,53.55,178.79,178.73,13.55]
[1721998563163,20.0,178.76,178.73,13.55]
[1721998563463,20.0,178.76,178.72,14.55]
[1721998563666,20.0,178.76,178.73,45.0]
[1721998564376,20.0,178.76,178.72,14.55]
[1721998564974,13.55,178.77,178.72,1.0]
[1721998565267,13.55,178.77,178.72,59.55]
[1721998566175,13.55,178.77,178.72,46.0]
[1721998568160,20.0,178.78,178.72,46.0]
[1721998568360,13.55,178.76,178.72,46.0]
[1721998569568,20.0,178.78,178.72,46.0]
[1721998569874,13.55,178.77,178.72,46.0]
[1721998570677,20.0,178.76,178.72,46.0]
[1721998575478,16.15116887,178.75,178.72,46.0]
[1721998577591,6.72965423,178.74,178.72,46.0]
[1721998577766,6.72965423,178.73,178.72,1.0]
[1721998579686,22.78089717,178.75,178.72,1.0]
[1721998579874,6.62965423,178.74,178.72,1.0]
[1721998580075,16.15124294,178.75,178.72,1.0]
[1721998580378,33.55,178.76,178.72,1.0]
[1721998580588,16.15124294,178.75,178.72,1.0]
[1721998582794,33.55,178.76,178.72,1.0]
[1721998582996,16.15065672,178.75,178.72,1.0]
[1721998583399,16.15068816,178.75,178.72,1.0]
[1721998583876,33.55,178.76,178.72,1.0]
[1721998583877,20.97508437,178.78,178.72,1.0]
[1721998584075,33.55,178.76,178.72,1.0]
[1721998584477,20.0,178.76,178.72,1.0]
[1721998585277,16.14883648,178.75,178.72,1.0]
[1721998585993,33.55,178.76,178.72,1.0]
[1721998586177,16.14938614,178.75,178.72,1.0]
[1721998586381,16.149496,178.75,178.72,1.0]
[1721998587497,16.149496,178.75,178.74,13.55]
[1721998587797,13.55,178.8,178.74,58.55]
[1721998588094,29.69807559,178.8,178.75,45.0]
[1721998588980,33.55,178.78,178.72,1.0]
[1721998589300,16.14807559,178.77,178.72,14.55]
[1721998589601,6.72933488,178.76,178.73,45.0]
[1721998589801,6.72933488,178.75,178.73,45.0]
[1721998589984,6.72933488,178.74,178.73,45.0]
[1721998591277,6.72933488,178.74,178.72,46.0]
[1721998591484,6.72933488,178.73,178.72,46.0]
[1721998591789,6.72933488,178.73,178.72,1.0]
[1721998593601,6.72933488,178.73,178.72,14.55]
[1721998593806,6.72933488,178.73,178.72,59.55]
[1721998598817,20.27933488,178.73,178.72,1.0]
[1721998599396,56.43099515,178.73,178.72,1.0]
[1721998599781,56.43100065,178.73,178.72,1.0]
[1721998602512,56.43169319,178.73,178.72,1.0]
[1721998603009,76.43169319,178.73,178.72,1.0]
[1721998604806,77.40686697,178.73,178.72,1.0]
[1721998605103,63.85686697,178.73,178.72,1.0]
[1721998605400,77.40686697,178.73,178.72,1.0]
[1721998605991,77.40891983,178.73,178.72,1.0]
[1721998606191,23.85891983,178.73,178.72,1.0]
[1721998607712,37.40891983,178.73,178.72,1.0]
[1721998608889,21.25450866,178.73,178.72,1.0]
[1721998609290,37.40704478,178.73,178.72,1.0]
[1721998609813,37.40679547,178.73,178.72,1.0]
[1721998610316,23.85679547,178.73,178.72,1.0]
[1721998610612,37.40679547,178.73,178.72,1.0]
[1721998611407,57.40679547,178.73,178.72,1.0]
[1721998612817,57.40813697,178.73,178.72,1.0]
[1721998614420,56.43296319,178.73,178.72,1.0]
[1721998614992,22.88296319,178.73,178.72,1.0]
[1721998615215,36.43296319,178.73,178.72,1.0]
[1721998616399,36.43217704,178.73,178.72,1.0]
[1721998617031,36.43296212,178.73,178.72,1.0]
[1721998618115,29.70284216,178.73,178.72,1.0]
[1721998618826,16.15284216,178.73,178.72,1.0]
[1721998619036,29.70284216,178.73,178.72,1.0]
[1721998619629,29.70284251,178.73,178.72,1.0]
[1721998620001,36.43298254,178.73,178.72,1.0]
[1721998620324,36.43292777,178.73,178.72,1.0]
[1721998621006,20.28014003,178.73,178.72,1.0]
[1721998621199,36.43256583,178.73,178.72,1.0]
[1721998621736,20.28014003,178.73,178.72,1.0]
[1721998624043,13.55,178.73,178.72,1.0]
[1721998624530,20.28011996,178.73,178.72,1.0]
[1721998625215,36.43334034,178.73,178.72,1.0]
[1721998625405,56.43334034,178.73,178.72,1.0]
[1721998626236,56.43443678,178.73,178.72,1.0]
[1721998628028,36.43443678,178.73,178.72,1.0]
[1721998629511,20.28011996,178.73,178.72,1.0]
[1721998629713,22.88385796,178.73,178.72,1.0]
[1721998630015,22.88358509,178.73,178.72,1.0]
[1721998630216,6.73011996,178.73,178.72,1.0]
[1721998630404,22.8830592,178.73,178.72,1.0]
[1721998630906,36.4330592,178.73,178.72,1.0]
[1721998631440,56.4330592,178.73,178.72,1.0]
[1721998633136,56.4328004,178.73,178.72,1.0]
[1721998635244,42.8828004,178.73,178.72,1.0]
[1721998635540,100.66334586,178.73,178.72,1.0]
[1721998635839,108.73948981,178.73,178.72,1.0]
[1721998636012,20.0,178.67,178.6,6.3574]
[1721998636204,13.55,178.65,178.6,6.3574]
[1721998636406,6.73011996,178.64,178.6,6.3574]
[1721998637120,20.28011996,178.64,178.61,45.0]
[1721998637321,6.73011996,178.63,178.61,45.0]
[1721998638331,13.55,178.62,178.59,0.8122136]
[1721998638637,20.28011996,178.61,178.59,0.8122136]
[1721998638813,20.28011996,178.6,178.59,0.8122136]
[1721998640744,40.28011996,178.6,178.59,0.8122136]
[1721998643341,26.73011996,178.6,178.59,0.8122136]
[1721998643519,40.28011996,178.6,178.59,0.8122136]
[1721998643846,20.28011996,178.6,178.59,0.8122136]
[1721998644936,40.28011996,178.6,178.59,0.8122136]
[1721998645439,20.28011996,178.6,178.59,0.8122136]
[1721998645819,40.28011996,178.6,178.59,0.8122136]
[1721998646618,66.98835318,178.6,178.59,0.8122136]
[1721998647730,53.43835318,178.6,178.59,0.8122136]
[1721998647925,56.88371996,178.6,178.59,0.8122136]
[1721998648522,56.89006042,178.6,178.59,0.8122136]
[1721998648823,40.28646042,178.6,178.59,0.8122136]
[1721998649031,36.84156398,178.6,178.59,0.8122136]
[1721998649348,40.28646042,178.6,178.59,0.8122136]
[1721998650816,26.73646042,178.6,178.59,0.8122136]
[1721998651055,40.28646042,178.6,178.59,0.8122136]
[1721998653146,48.82710588,178.6,178.59,0.8122136]
[1721998655150,20.0,178.55,178.48,6.6084]
[1721998655454,13.55,178.5,178.48,6.6084]
[1721998655761,13.55,178.5,178.45,18.4775218]
[1721998655944,13.55,178.5,178.46,20.0]
[1721998656253,20.0,178.54,178.45,16.2356]
[1721998656254,13.55,178.49,178.45,16.2356]
[1721998657452,13.55,178.49,178.46,1.12050878]
[1721998658033,0.97577811,178.53,178.45,16.2356]
[1721998658237,13.55,178.5,178.45,16.2356]
[1721998658627,13.55,178.5,178.45,17.3560324]
[1721998658954,13.55,178.5,178.45,16.2356]
[1721998659131,13.55,178.49,178.45,16.2356]
[1721998659856,13.55,178.48,178.44,6.5941]
[1721998660176,13.55,178.46,178.43,9.62252801]
[1721998660452,13.55,178.45,178.43,9.62252801]
[1721998661650,13.55,178.44,178.43,9.62252801]
[1721998661963,15.6861,178.5,178.43,9.62252801]
[1721998662184,13.55,178.44,178.43,9.62252801]
[1721998663155,33.55,178.44,178.43,9.62252801]
[1721998663347,53.55,178.44,178.43,9.62252801]
[1721998663656,40.0,178.44,178.43,9.62252801]
[1721998663859,53.55,178.44,178.43,9.62252801]
[1721998664037,62.3650899,178.44,178.43,9.62252801]
[1721998664232,62.3650899,178.44,178.42,5.81404905]
[1721998664453,40.0,178.42,178.41,21.33316058]
[1721998664625,53.55,178.42,178.41,21.33316058]
[1721998665266,67.1,178.42,178.4,4.36292689]
[1721998665437,40.0,178.42,178.4,4.36292689]
[1721998665638,13.55,178.41,178.4,4.36292689]
[1721998666362,55.8391,178.42,178.4,4.36292689]
[1721998666539,13.55,178.41,178.4,4.36292689]
[1721998666733,13.55,178.41,178.4,3.36292689]
[1721998668537,78.15820432,178.47,178.4,3.36292689]
[1721998668538,40.0,178.44,178.4,3.36292689]
[1721998668865,13.55,178.42,178.4,3.36292689]
[1721998669264,13.55,178.41,178.4,3.36292689]
[1721998677166,40.0,178.44,178.4,3.36292689]
[1721998677344,13.55,178.41,178.4,3.36292689]
[1721998678048,14.52656691,178.41,178.4,3.36292689]
[1721998678666,54.52656691,178.41,178.4,3.36292689]
[1721998678870,34.52656691,178.41,178.4,3.36292689]
[1721998679072,54.52656691,178.41,178.4,3.36292689]
[1721998681178,70.52366691,178.41,178.4,3.36292689]
[1721998681354,77.26672108,178.41,178.4,3.36292689]
[1721998682557,70.52366691,178.41,178.4,3.36292689]
[1721998683764,77.26656196,178.41,178.4,3.36292689]
[1721998684081,76.28999505,178.41,178.4,3.36292689]
[1721998684986,76.28986761,178.41,178.4,3.36292689]
[1721998688358,121.28986761,178.41,178.4,3.36292689]
[1721998688563,127.14248185,178.41,178.4,3.36292689]
[1721998689695,140.69248185,178.41,178.4,3.36292689]
[1721998690763,147.29458185,178.41,178.4,3.36292689]
[1721998691971,120.19458185,178.41,178.4,3.36292689]
[1721998692185,133.74458185,178.41,178.4,3.36292689]
[1721998693077,133.74458185,178.41,178.39,5.14992133]
[1721998693078,40.0,178.39,178.38,4.2617004]
[1721998693391,159.49276761,178.39,178.36,4.6861182]
[1721998693591,13.55,178.38,178.36,4.6861182]
[1721998695671,137.02003637,178.38,178.36,4.6861182]
[1721998695871,149.3703254,178.38,178.36,4.6861182]
[1721998696073,143.7643254,178.38,178.36,4.6861182]
[1721998696672,153.8819281,178.38,178.36,4.6861182]
[1721998698370,162.12088268,178.38,178.36,4.6861182]
[1721998698683,167.97637352,178.38,178.36,4.6861182]
[1721998699305,173.58237352,178.38,178.36,4.6861182]
[1721998700185,54.53563637,178.37,178.36,1.09797254]
[1721998700390,45.6082,178.31,178.27,19.07696124]
[1721998700584,40.0,178.29,178.27,19.07696124]
[1721998700895,20.0,178.37,178.29,15.8718]
[1721998701189,10.11863024,178.36,178.29,15.8718]
[1721998701393,13.55,178.39,178.3,6.6535]
[1721998701592,40.0,178.42,178.37,15.8197]
[1721998701808,40.0,178.42,178.37,28.8697]
[1721998702000,13.55,178.44,178.38,20.1177]
[1721998702182,33.55,178.45,178.39,13.55]
[1721998702494,13.55,178.45,178.4,13.55]
[1721998703201,33.55,178.46,178.4,13.55]
[1721998703396,33.55,178.46,178.38,6.5677]
[1721998703397,20.0,178.46,178.43,13.55]
[1721998703695,13.55,178.51,178.45,13.55]
[1721998703909,10.11001162,178.5,178.46,13.55]
[1721998704084,33.55,178.52,178.47,6.2672]
[1721998704281,10.10950797,178.51,178.49,13.55]
[1721998704483,29.72418829,178.55,178.49,13.55]
[1721998704677,16.84706243,178.54,178.49,13.55]
[1721998704878,10.10832556,178.53,178.5,15.158]
[1721998705282,13.55,178.55,178.5,15.158]
[1721998705486,10.10758814,178.54,178.5,15.158]
[1721998706005,13.55,178.55,178.5,15.158]
[1721998706175,10.10772428,178.53,178.5,15.158]
[1721998706378,20.0,178.56,178.5,15.158]
[1721998706581,16.84635474,178.55,178.5,15.158]
[1721998706789,10.10779136,178.54,178.5,15.158]
[1721998707006,20.0,178.56,178.5,15.158]
[1721998707214,16.84630433,178.55,178.5,15.158]
[1721998707412,10.10778285,178.55,178.5,15.158]
[1721998707617,20.0,178.59,178.5,15.158]
[1721998707789,10.10620814,178.58,178.5,15.158]
[1721998708293,20.0,178.57,178.5,15.158]
[1721998708603,40.0,178.57,178.5,15.158]